[Event "Early-Titled-Tuesday-Blitz-November-28-2023"]
[Site "Chess.com"]
[Date "2023.11.28"]
[Round "11"]
[White "DDTerziev04"]
[Black "stratacticos"]
[Result "1-0"]
[WhiteElo "2148"]
[BlackElo "1770"]
[TimeControl "180+1"]
[EndTime "10:11:47 PST"]
[Termination "DDTerziev04 won on time"]

1. d4 {[%clk 0:02:41.3]} 1... Nf6 {[%clk 0:02:58.9]} 2. Nf3 {[%clk 0:02:39.7]}
2... g6 {[%clk 0:02:57]} 3. c4 {[%clk 0:02:36.2]} 3... c5 {[%clk 0:02:56.1]} 4.
e3 {[%clk 0:02:34.9]} 4... Bg7 {[%clk 0:02:55.3]} 5. Be2 {[%clk 0:02:33.9]} 5...
O-O {[%clk 0:02:54.9]} 6. O-O {[%clk 0:02:32.7]} 6... cxd4 {[%clk 0:02:54.9]} 7.
exd4 {[%clk 0:02:32.4]} 7... d5 {[%clk 0:02:55.6]} 8. Nc3 {[%clk 0:02:26.3]}
8... dxc4 {[%clk 0:02:54.7]} 9. Bxc4 {[%clk 0:02:27.2]} 9... Bg4 {[%clk
0:02:54.5]} 10. Be3 {[%clk 0:02:22.1]} 10... Nc6 {[%clk 0:02:54.1]} 11. Be2
{[%clk 0:02:16]} 11... Nb4 {[%clk 0:02:45.1]} 12. h3 {[%clk 0:02:14.2]} 12...
Bxf3 {[%clk 0:02:42.7]} 13. Bxf3 {[%clk 0:02:13.9]} 13... Nbd5 {[%clk
0:02:43.2]} 14. Qd2 {[%clk 0:02:12]} 14... Rc8 {[%clk 0:02:36.9]} 15. Rfe1
{[%clk 0:02:11]} 15... e6 {[%clk 0:02:32.7]} 16. Bg5 {[%clk 0:02:06.1]} 16...
Nxc3 {[%clk 0:02:31.4]} 17. bxc3 {[%clk 0:02:05.8]} 17... Qc7 {[%clk 0:02:30.8]}
18. Rac1 {[%clk 0:01:54.2]} 18... b6 {[%clk 0:02:29.4]} 19. c4 {[%clk
0:01:49.7]} 19... Rfd8 {[%clk 0:02:08.8]} 20. d5 {[%clk 0:01:42.2]} 20... exd5
{[%clk 0:02:07.4]} 21. cxd5 {[%clk 0:01:41.3]} 21... Qd6 {[%clk 0:02:05.6]} 22.
Bf4 {[%clk 0:01:30.5]} 22... Qd7 {[%clk 0:01:45.7]} 23. d6 {[%clk 0:01:25.8]}
23... Rxc1 {[%clk 0:01:40.2]} 24. Rxc1 {[%clk 0:01:25.1]} 24... Rc8 {[%clk
0:00:58.6]} 25. Rc7 {[%clk 0:01:12.9]} 25... Qf5 {[%clk 0:00:40.2]} 26. d7
{[%clk 0:01:01.8]} 26... Rd8 {[%clk 0:00:39.9]} 27. Bg5 {[%clk 0:00:16.1]} 27...
h6 {[%clk 0:00:19.5]} 28. Bxf6 {[%clk 0:00:10.1]} 28... Bxf6 {[%clk 0:00:18.9]}
29. Bg4 {[%clk 0:00:05.5]} 29... Qb1+ {[%clk 0:00:15]} 30. Rc1 {[%clk
0:00:05.2]} 30... Qb5 {[%clk 0:00:11.2]} 31. Rc8 {[%clk 0:00:02.9]} 31... Qb1+
{[%clk 0:00:09.5]} 32. Kh2 {[%clk 0:00:02.8]} 32... Be5+ {[%clk 0:00:08.8]} 33.
g3 {[%clk 0:00:03.4]} 33... Bf6 {[%clk 0:00:07.4]} 34. Qe2 {[%clk 0:00:02.7]}
34... Kg7 {[%clk 0:00:06.6]} 35. Rxd8 {[%clk 0:00:02.9]} 35... Bxd8 {[%clk
0:00:05.6]} 36. Qe8 {[%clk 0:00:02.7]} 36... Bc7 {[%clk 0:00:05.1]} 37. Qe2
{[%clk 0:00:01.4]} 37... Qc1 {[%clk 0:00:01.5]} 38. Kg2 {[%clk 0:00:01.3]} 1-0

[Event "Early-Titled-Tuesday-Blitz-November-28-2023"]
[Site "Chess.com"]
[Date "2023.11.28"]
[Round "11"]
[White "tacticthunder"]
[Black "TigrVShlyape"]
[Result "0-1"]
[WhiteElo "2792"]
[BlackElo "2976"]
[TimeControl "180+1"]
[EndTime "10:11:51 PST"]
[Termination "TigrVShlyape won by checkmate"]

1. e4 {[%clk 0:03:00.9]} 1... c5 {[%clk 0:02:58.6]} 2. Nf3 {[%clk 0:02:59.9]}
2... e6 {[%clk 0:02:58.4]} 3. d4 {[%clk 0:02:59.6]} 3... cxd4 {[%clk 0:02:58.7]}
4. Nxd4 {[%clk 0:03:00.5]} 4... a6 {[%clk 0:02:58.9]} 5. c4 {[%clk 0:03:00.5]}
5... Nc6 {[%clk 0:02:51.3]} 6. Nc3 {[%clk 0:03:00.4]} 6... Bb4 {[%clk
0:02:32.5]} 7. Nc2 {[%clk 0:02:56.2]} 7... Bxc3+ {[%clk 0:02:25.3]} 8. bxc3
{[%clk 0:02:57.1]} 8... Nf6 {[%clk 0:02:25.5]} 9. f3 {[%clk 0:02:54.3]} 9... O-O
{[%clk 0:02:23.6]} 10. Ba3 {[%clk 0:02:54.2]} 10... Re8 {[%clk 0:02:23.2]} 11.
Bd6 {[%clk 0:02:53.4]} 11... e5 {[%clk 0:02:15.9]} 12. Nb4 {[%clk 0:02:49.1]}
12... Re6 {[%clk 0:01:24.1]} 13. Qd2 {[%clk 0:02:37.4]} 13... Ne8 {[%clk
0:01:21.1]} 14. Bc5 {[%clk 0:02:37.5]} 14... d6 {[%clk 0:01:13.1]} 15. Be3
{[%clk 0:02:37.3]} 15... Bd7 {[%clk 0:01:06.4]} 16. Nd5 {[%clk 0:02:37.1]} 16...
Rb8 {[%clk 0:00:59.4]} 17. Bb6 {[%clk 0:02:33.8]} 17... Qh4+ {[%clk 0:00:53.4]}
18. Qf2 {[%clk 0:02:33.9]} 18... Qh6 {[%clk 0:00:38.2]} 19. Be3 {[%clk
0:02:27.9]} 19... Qg6 {[%clk 0:00:37.5]} 20. h4 {[%clk 0:02:27]} 20... f5 {[%clk
0:00:36.3]} 21. h5 {[%clk 0:02:13]} 21... Qf7 {[%clk 0:00:35.7]} 22. Bd3 {[%clk
0:02:06.2]} 22... f4 {[%clk 0:00:30.3]} 23. Bb6 {[%clk 0:01:51.7]} 23... Rh6
{[%clk 0:00:27.2]} 24. g4 {[%clk 0:01:42]} 24... fxg3 {[%clk 0:00:26.2]} 25.
Qxg3 {[%clk 0:01:42.1]} 25... Rxh5 {[%clk 0:00:24.6]} 26. Rxh5 {[%clk
0:01:42.1]} 26... Qxh5 {[%clk 0:00:24.7]} 27. Kf2 {[%clk 0:01:42.8]} 27... Qh3
{[%clk 0:00:19]} 28. Qxh3 {[%clk 0:01:08.9]} 28... Bxh3 {[%clk 0:00:18.6]} 29.
Rb1 {[%clk 0:01:08.7]} 29... Be6 {[%clk 0:00:12.4]} 30. Nc7 {[%clk 0:00:47.8]}
30... Kf7 {[%clk 0:00:11]} 31. Nxe6 {[%clk 0:00:32.2]} 31... Kxe6 {[%clk
0:00:10.5]} 32. c5 {[%clk 0:00:30.4]} 32... Rc8 {[%clk 0:00:10.4]} 33. Bc4+
{[%clk 0:00:30.6]} 33... Ke7 {[%clk 0:00:10.5]} 34. cxd6+ {[%clk 0:00:28.4]}
34... Nxd6 {[%clk 0:00:10.4]} 35. Bd5 {[%clk 0:00:28]} 35... Nb8 {[%clk
0:00:09.9]} 36. Ba5 {[%clk 0:00:27]} 36... b5 {[%clk 0:00:08.3]} 37. Rg1 {[%clk
0:00:19.5]} 37... g6 {[%clk 0:00:07.8]} 38. Rh1 {[%clk 0:00:20]} 38... h5 {[%clk
0:00:07.9]} 39. Rg1 {[%clk 0:00:19.2]} 39... Kf6 {[%clk 0:00:08.3]} 40. Bb4
{[%clk 0:00:19]} 40... Nc4 {[%clk 0:00:08.2]} 41. a4 {[%clk 0:00:19.1]} 41...
Nc6 {[%clk 0:00:08]} 42. axb5 {[%clk 0:00:14.9]} 42... Nxb4 {[%clk 0:00:06.6]}
43. cxb4 {[%clk 0:00:15.3]} 43... axb5 {[%clk 0:00:07]} 44. Ra1 {[%clk
0:00:16.1]} 44... Nd6 {[%clk 0:00:05.9]} 45. Ra6 {[%clk 0:00:16.2]} 45... Rd8
{[%clk 0:00:06.3]} 46. Kg3 {[%clk 0:00:16.2]} 46... Kg5 {[%clk 0:00:06.1]} 47.
Rb6 {[%clk 0:00:15.9]} 47... h4+ {[%clk 0:00:05.3]} 48. Kh3 {[%clk 0:00:16.4]}
48... Kf4 {[%clk 0:00:05.7]} 49. Kxh4 {[%clk 0:00:16.8]} 49... Rh8# {[%clk
0:00:05.2]} 0-1

[Event "Early-Titled-Tuesday-Blitz-November-28-2023"]
[Site "Chess.com"]
[Date "2023.11.28"]
[Round "11"]
[White "RobertoJBM"]
[Black "SayonaraPonytail"]
[Result "0-1"]
[WhiteElo "2795"]
[BlackElo "2589"]
[TimeControl "180+1"]
[EndTime "10:11:52 PST"]
[Termination "SayonaraPonytail won by resignation"]

1. d4 {[%clk 0:02:58.2]} 1... d5 {[%clk 0:02:59.1]} 2. c4 {[%clk 0:02:58.5]}
2... c6 {[%clk 0:02:59.5]} 3. Nc3 {[%clk 0:02:58.8]} 3... Nf6 {[%clk 0:02:59.8]}
4. Nf3 {[%clk 0:02:59.3]} 4... dxc4 {[%clk 0:03:00.2]} 5. a4 {[%clk 0:02:59.4]}
5... Bf5 {[%clk 0:03:00.3]} 6. Ne5 {[%clk 0:02:58.9]} 6... Nbd7 {[%clk
0:03:00.5]} 7. Nxc4 {[%clk 0:02:59.1]} 7... Nb6 {[%clk 0:03:00.6]} 8. Ne5 {[%clk
0:02:58.5]} 8... a5 {[%clk 0:03:01]} 9. f3 {[%clk 0:02:58.7]} 9... Nfd7 {[%clk
0:03:00.9]} 10. Nxd7 {[%clk 0:02:58.8]} 10... Bxd7 {[%clk 0:03:01.8]} 11. e4
{[%clk 0:02:59]} 11... e6 {[%clk 0:03:02.2]} 12. Be3 {[%clk 0:02:59]} 12... Bb4
{[%clk 0:03:02.7]} 13. Kf2 {[%clk 0:02:59]} 13... O-O {[%clk 0:03:02.6]} 14. Qc2
{[%clk 0:02:59.2]} 14... Rc8 {[%clk 0:03:01.9]} 15. Rd1 {[%clk 0:02:58]} 15...
Qe7 {[%clk 0:02:57]} 16. Bd3 {[%clk 0:02:56.8]} 16... c5 {[%clk 0:02:55.2]} 17.
d5 {[%clk 0:02:54.3]} 17... e5 {[%clk 0:02:23.6]} 18. Bb5 {[%clk 0:02:50]} 18...
Qd6 {[%clk 0:02:11.7]} 19. Bxd7 {[%clk 0:02:47.8]} 19... Nxd7 {[%clk 0:02:12.6]}
20. Nb5 {[%clk 0:02:45.8]} 20... Qg6 {[%clk 0:02:08.3]} 21. g4 {[%clk
0:02:44.8]} 21... Nf6 {[%clk 0:01:46]} 22. h4 {[%clk 0:02:37.1]} 22... h5 {[%clk
0:01:24.5]} 23. g5 {[%clk 0:02:34]} 23... Nd7 {[%clk 0:01:17]} 24. Rdg1 {[%clk
0:02:26.8]} 24... Kh8 {[%clk 0:01:17.2]} 25. Ke2 {[%clk 0:02:25]} 25... c4
{[%clk 0:01:15.4]} 26. Kf2 {[%clk 0:02:02.3]} 26... Bc5 {[%clk 0:01:14.8]} 27.
Qe2 {[%clk 0:01:46.2]} 27... Bxe3+ {[%clk 0:01:09.5]} 28. Qxe3 {[%clk
0:01:47.1]} 28... Nc5 {[%clk 0:01:10.1]} 29. Kg3 {[%clk 0:01:29.8]} 29... Nxa4
{[%clk 0:01:01.8]} 30. Rg2 {[%clk 0:01:28.1]} 30... Nc5 {[%clk 0:01:00.9]} 31.
Na3 {[%clk 0:01:19.2]} 31... Nb3 {[%clk 0:00:42.4]} 32. Nxc4 {[%clk 0:01:16.4]}
32... Rxc4 {[%clk 0:00:42.5]} 33. Qxb3 {[%clk 0:01:16]} 33... Rb4 {[%clk
0:00:42.9]} 34. Qc3 {[%clk 0:01:12.3]} 34... f5 {[%clk 0:00:40]} 35. Qxe5 {[%clk
0:01:08]} 35... fxe4 {[%clk 0:00:40.1]} 36. f4 {[%clk 0:01:04.1]} 36... Rb3+
{[%clk 0:00:27.4]} 37. Kh2 {[%clk 0:01:04.1]} 37... Rf3 {[%clk 0:00:26.9]} 38.
Re2 {[%clk 0:00:52]} 38... R8xf4 {[%clk 0:00:26.1]} 39. d6 {[%clk 0:00:46.2]}
39... Rxh4+ {[%clk 0:00:25.8]} 40. Kg2 {[%clk 0:00:46.7]} 40... Rg4+ {[%clk
0:00:26]} 41. Kh2 {[%clk 0:00:46]} 41... Rxg5 {[%clk 0:00:25.9]} 42. Qe7 {[%clk
0:00:22.7]} 42... Qf5 {[%clk 0:00:13]} 43. Qe8+ {[%clk 0:00:16.7]} 43... Kh7
{[%clk 0:00:13.3]} 44. Qxe4 {[%clk 0:00:17.4]} 44... Rf2+ {[%clk 0:00:11.8]} 45.
Rxf2 {[%clk 0:00:16]} 45... Qxe4 {[%clk 0:00:12.3]} 46. Rg2 {[%clk 0:00:12.6]}
46... Qh4+ {[%clk 0:00:12.2]} 47. Kg1 {[%clk 0:00:13.5]} 0-1

[Event "Early-Titled-Tuesday-Blitz-November-28-2023"]
[Site "Chess.com"]
[Date "2023.11.28"]
[Round "11"]
[White "atalz0"]
[Black "esrosenberg"]
[Result "0-1"]
[WhiteElo "2474"]
[BlackElo "2405"]
[TimeControl "180+1"]
[EndTime "10:11:52 PST"]
[Termination "esrosenberg won on time"]

1. d4 {[%clk 0:03:00.9]} 1... Nf6 {[%clk 0:02:54.1]} 2. c4 {[%clk 0:03:00.4]}
2... g6 {[%clk 0:02:54.4]} 3. f3 {[%clk 0:03:00.2]} 3... d5 {[%clk 0:02:52.9]}
4. cxd5 {[%clk 0:03:01.1]} 4... Nxd5 {[%clk 0:02:52.7]} 5. e4 {[%clk 0:03:02]}
5... Nb6 {[%clk 0:02:52.8]} 6. Nc3 {[%clk 0:03:02.9]} 6... Bg7 {[%clk
0:02:52.5]} 7. Be3 {[%clk 0:03:03.5]} 7... O-O {[%clk 0:02:52.3]} 8. a4 {[%clk
0:03:04.1]} 8... a5 {[%clk 0:02:51.7]} 9. Rc1 {[%clk 0:03:03.8]} 9... Nc6 {[%clk
0:02:50.2]} 10. Nb5 {[%clk 0:03:03.6]} 10... e6 {[%clk 0:02:33.2]} 11. h4 {[%clk
0:03:03.1]} 11... h5 {[%clk 0:02:32.8]} 12. g4 {[%clk 0:02:57.2]} 12... hxg4
{[%clk 0:02:31.8]} 13. h5 {[%clk 0:02:57.7]} 13... gxf3 {[%clk 0:02:31.3]} 14.
Nxf3 {[%clk 0:02:53.6]} 14... e5 {[%clk 0:02:27.3]} 15. hxg6 {[%clk 0:02:41]}
15... exd4 {[%clk 0:02:21.3]} 16. Nfxd4 {[%clk 0:02:23.5]} 16... Nxd4 {[%clk
0:02:16.7]} 17. Bxd4 {[%clk 0:02:20.6]} 17... Qg5 {[%clk 0:01:55.9]} 18. Rxc7
{[%clk 0:02:00.7]} 18... Qg3+ {[%clk 0:01:29.1]} 19. Bf2 {[%clk 0:01:58.3]}
19... Qxg6 {[%clk 0:01:29.6]} 20. Bd3 {[%clk 0:01:04.6]} 20... Bg4 {[%clk
0:01:20.3]} 21. Qb3 {[%clk 0:00:20.5]} 21... Rae8 {[%clk 0:01:12.8]} 22. Rg1
{[%clk 0:00:18.8]} 22... Rxe4+ {[%clk 0:01:10.8]} 23. Bxe4 {[%clk 0:00:18.7]}
23... Qxe4+ {[%clk 0:01:11.7]} 24. Qe3 {[%clk 0:00:17.6]} 24... Qxe3+ {[%clk
0:01:04.6]} 25. Bxe3 {[%clk 0:00:18.5]} 25... Nd5 {[%clk 0:01:04.4]} 26. Rxg4
{[%clk 0:00:16.7]} 26... Nxe3 {[%clk 0:01:02.9]} 27. Re4 {[%clk 0:00:15.2]}
27... Nd5 {[%clk 0:00:56.1]} 28. Rxb7 {[%clk 0:00:15.4]} 28... Nb4 {[%clk
0:00:52.6]} 29. Kd2 {[%clk 0:00:13.4]} 29... Rd8+ {[%clk 0:00:50.5]} 30. Kc1
{[%clk 0:00:11]} 30... Nd3+ {[%clk 0:00:46.9]} 31. Kc2 {[%clk 0:00:11.1]} 31...
Nb4+ {[%clk 0:00:46.6]} 32. Kb3 {[%clk 0:00:10]} 32... Rd2 {[%clk 0:00:43.6]}
33. Nc3 {[%clk 0:00:10]} 33... Rd3 {[%clk 0:00:38.3]} 34. Re8+ {[%clk
0:00:09.5]} 34... Kh7 {[%clk 0:00:36.5]} 35. Rxf7 {[%clk 0:00:09.4]} 35... Kg6
{[%clk 0:00:37.2]} 36. Ra7 {[%clk 0:00:08.6]} 36... Nd5 {[%clk 0:00:34.2]} 37.
Re6+ {[%clk 0:00:06.7]} 37... Kf5 {[%clk 0:00:33.4]} 38. Rc6 {[%clk 0:00:05.7]}
38... Bxc3 {[%clk 0:00:29.1]} 39. bxc3 {[%clk 0:00:06.6]} 39... Ke4 {[%clk
0:00:27.3]} 40. Rxa5 {[%clk 0:00:05.9]} 40... Ne3 {[%clk 0:00:26.4]} 41. Rb5
{[%clk 0:00:04.6]} 41... Nd5 {[%clk 0:00:22.8]} 42. Rc4+ {[%clk 0:00:03.7]}
42... Ke3 {[%clk 0:00:21.9]} 43. Rcc5 {[%clk 0:00:02.7]} 43... Nf4 {[%clk
0:00:21]} 44. Re5+ {[%clk 0:00:02.5]} 44... Kf3 {[%clk 0:00:20.4]} 45. Rf5
{[%clk 0:00:01.7]} 45... Kg4 {[%clk 0:00:19.9]} 46. Rg5+ {[%clk 0:00:01.5]}
46... Kf3 {[%clk 0:00:17.7]} 47. Rgf5 {[%clk 0:00:01.3]} 47... Kg4 {[%clk
0:00:17.4]} 48. a5 {[%clk 0:00:01.2]} 48... Ne2 {[%clk 0:00:16.6]} 0-1

[Event "Early-Titled-Tuesday-Blitz-November-28-2023"]
[Site "Chess.com"]
[Date "2023.11.28"]
[Round "11"]
[White "missponyo10"]
[Black "Roedor"]
[Result "1-0"]
[WhiteElo "2213"]
[BlackElo "2390"]
[TimeControl "180+1"]
[EndTime "10:11:54 PST"]
[Termination "missponyo10 won by resignation"]

1. e4 {[%clk 0:03:00.9]} 1... e5 {[%clk 0:02:58.8]} 2. Nf3 {[%clk 0:03:00.3]}
2... Nc6 {[%clk 0:02:53.1]} 3. Nc3 {[%clk 0:02:59.7]} 3... Nf6 {[%clk
0:02:52.7]} 4. d4 {[%clk 0:02:59.1]} 4... exd4 {[%clk 0:02:52.9]} 5. Nxd4 {[%clk
0:03:00]} 5... Bb4 {[%clk 0:02:52.7]} 6. Nxc6 {[%clk 0:03:00.5]} 6... bxc6
{[%clk 0:02:53.6]} 7. Bd3 {[%clk 0:03:00.5]} 7... d6 {[%clk 0:02:53.8]} 8. O-O
{[%clk 0:03:00.1]} 8... Bc5 {[%clk 0:02:54.1]} 9. h3 {[%clk 0:02:58.5]} 9... Nd7
{[%clk 0:02:50]} 10. Bf4 {[%clk 0:02:56]} 10... Ne5 {[%clk 0:02:49.4]} 11. Bxe5
{[%clk 0:02:55.3]} 11... dxe5 {[%clk 0:02:50.3]} 12. Qf3 {[%clk 0:02:54.9]}
12... Qf6 {[%clk 0:02:46.1]} 13. Qxf6 {[%clk 0:02:49.7]} 13... gxf6 {[%clk
0:02:47]} 14. Ne2 {[%clk 0:02:48.8]} 14... Rb8 {[%clk 0:02:44.3]} 15. b3 {[%clk
0:02:47.7]} 15... Rg8 {[%clk 0:02:44.1]} 16. Kh2 {[%clk 0:02:45.9]} 16... Ke7
{[%clk 0:02:36.7]} 17. f3 {[%clk 0:02:45.1]} 17... Be6 {[%clk 0:02:33.8]} 18.
Rad1 {[%clk 0:02:39.9]} 18... Rg5 {[%clk 0:02:30.7]} 19. g4 {[%clk 0:02:35.3]}
19... h5 {[%clk 0:02:26.3]} 20. Kg3 {[%clk 0:02:27.7]} 20... Rh8 {[%clk
0:02:15.5]} 21. Rh1 {[%clk 0:02:22.3]} 21... Be3 {[%clk 0:02:09.4]} 22. Ba6
{[%clk 0:02:16.4]} 22... f5 {[%clk 0:01:59.3]} 23. exf5 {[%clk 0:02:13.5]} 23...
Bxf5 {[%clk 0:01:59.4]} 24. Bd3 {[%clk 0:02:08]} 24... hxg4 {[%clk 0:01:50]} 25.
hxg4 {[%clk 0:02:02.3]} 25... Rxh1 {[%clk 0:01:49.1]} 26. Rxh1 {[%clk
0:01:57.1]} 26... Bxd3 {[%clk 0:01:49.1]} 27. cxd3 {[%clk 0:01:56.6]} 27... Rg6
{[%clk 0:01:45.1]} 28. Rh5 {[%clk 0:01:39.3]} 28... Ke6 {[%clk 0:01:31.7]} 29.
Nc3 {[%clk 0:01:38.3]} 29... Rg8 {[%clk 0:01:27.1]} 30. Rh1 {[%clk 0:01:27.3]}
30... f5 {[%clk 0:01:22.4]} 31. Nd1 {[%clk 0:01:24.5]} 31... Bf4+ {[%clk
0:01:21.5]} 32. Kh3 {[%clk 0:01:19.2]} 32... Kd5 {[%clk 0:01:05.2]} 33. gxf5
{[%clk 0:01:10.3]} 33... Rg5 {[%clk 0:01:03.7]} 34. Nc3+ {[%clk 0:01:05.7]}
34... Kd4 {[%clk 0:00:59.8]} 35. Ne4 {[%clk 0:01:05.5]} 35... Rxf5 {[%clk
0:00:55.8]} 36. Kg4 {[%clk 0:01:05.1]} 36... Rf7 {[%clk 0:00:53]} 37. Rh8 {[%clk
0:01:00.4]} 37... Kxd3 {[%clk 0:00:52.5]} 38. Nc5+ {[%clk 0:00:53.7]} 38... Kc2
{[%clk 0:00:44.3]} 39. Ra8 {[%clk 0:00:52.9]} 39... Kb1 {[%clk 0:00:38.8]} 40.
a4 {[%clk 0:00:49]} 40... Be3 {[%clk 0:00:38.8]} 41. Nd3 {[%clk 0:00:44]} 41...
Kc2 {[%clk 0:00:37]} 42. Nxe5 {[%clk 0:00:42.9]} 42... Rg7+ {[%clk 0:00:36.6]}
43. Kf5 {[%clk 0:00:41.1]} 43... c5 {[%clk 0:00:24.7]} 44. Nc4 {[%clk
0:00:34.2]} 44... Bd4 {[%clk 0:00:22.2]} 45. Rb8 {[%clk 0:00:27.9]} 45... Rg3
{[%clk 0:00:16]} 46. Ke4 {[%clk 0:00:28]} 46... Rg1 {[%clk 0:00:15.1]} 47. f4
{[%clk 0:00:27.8]} 47... Rb1 {[%clk 0:00:15.4]} 48. Na3+ {[%clk 0:00:25]} 48...
Kb2 {[%clk 0:00:15.7]} 49. Nxb1 {[%clk 0:00:25.3]} 49... Kxb1 {[%clk 0:00:16.6]}
50. f5 {[%clk 0:00:25.4]} 1-0

[Event "Early-Titled-Tuesday-Blitz-November-28-2023"]
[Site "Chess.com"]
[Date "2023.11.28"]
[Round "11"]
[White "Zhigalko_Sergei"]
[Black "AlexPapasimakopoulos"]
[Result "1-0"]
[WhiteElo "2922"]
[BlackElo "2672"]
[TimeControl "180+1"]
[EndTime "10:11:55 PST"]
[Termination "Zhigalko_Sergei won by checkmate"]

1. e4 {[%clk 0:03:00.9]} 1... e6 {[%clk 0:02:59]} 2. d4 {[%clk 0:03:00.8]} 2...
d5 {[%clk 0:02:58.9]} 3. e5 {[%clk 0:03:01.5]} 3... a6 {[%clk 0:02:48]} 4. Nf3
{[%clk 0:03:01.1]} 4... Bd7 {[%clk 0:02:48.3]} 5. c3 {[%clk 0:03:01.3]} 5... c5
{[%clk 0:02:48.6]} 6. Bd3 {[%clk 0:02:59]} 6... Qb6 {[%clk 0:02:47.9]} 7. dxc5
{[%clk 0:02:54.4]} 7... Bxc5 {[%clk 0:02:47.4]} 8. b4 {[%clk 0:02:54.5]} 8...
Bf8 {[%clk 0:02:45.8]} 9. O-O {[%clk 0:02:51.2]} 9... Ne7 {[%clk 0:02:42.1]} 10.
Re1 {[%clk 0:02:48.4]} 10... Nbc6 {[%clk 0:02:31.5]} 11. a4 {[%clk 0:02:44.9]}
11... Ng6 {[%clk 0:02:27.2]} 12. h4 {[%clk 0:02:42.2]} 12... Qc7 {[%clk
0:02:26.9]} 13. Qe2 {[%clk 0:02:38.8]} 13... Nge7 {[%clk 0:02:26]} 14. Bf4
{[%clk 0:02:35]} 14... f5 {[%clk 0:02:15]} 15. Nbd2 {[%clk 0:02:25]} 15... Ng6
{[%clk 0:02:08.8]} 16. Bg3 {[%clk 0:02:25.3]} 16... Be7 {[%clk 0:02:07.8]} 17.
h5 {[%clk 0:02:11]} 17... Nf8 {[%clk 0:02:07.6]} 18. Bxf5 {[%clk 0:02:11]} 18...
g6 {[%clk 0:01:56.2]} 19. Bg4 {[%clk 0:02:06.9]} 19... gxh5 {[%clk 0:01:52.8]}
20. Bxh5+ {[%clk 0:02:07.2]} 20... Ng6 {[%clk 0:01:53.5]} 21. Qd3 {[%clk
0:02:02.7]} 21... Rg8 {[%clk 0:01:52.2]} 22. b5 {[%clk 0:01:56.4]} 22... Na5
{[%clk 0:01:45.3]} 23. Nd4 {[%clk 0:01:55]} 23... Nc4 {[%clk 0:01:31.1]} 24.
Nxc4 {[%clk 0:01:51.4]} 24... Qxc4 {[%clk 0:01:27.9]} 25. Qxc4 {[%clk 0:01:45]}
25... dxc4 {[%clk 0:01:28.8]} 26. Bf3 {[%clk 0:01:43.3]} 26... axb5 {[%clk
0:01:21.6]} 27. axb5 {[%clk 0:01:29.4]} 27... Rb8 {[%clk 0:01:21.7]} 28. Ra4
{[%clk 0:01:06.3]} 28... Bc5 {[%clk 0:01:18.5]} 29. Rb1 {[%clk 0:00:47]} 29...
Ne7 {[%clk 0:01:07.4]} 30. Rxc4 {[%clk 0:00:45.8]} 30... b6 {[%clk 0:01:06.4]}
31. Ra4 {[%clk 0:00:41.5]} 31... Bxd4 {[%clk 0:01:03.1]} 32. cxd4 {[%clk
0:00:35]} 32... Nf5 {[%clk 0:01:03.5]} 33. Bf4 {[%clk 0:00:27.5]} 33... Nh4
{[%clk 0:00:53.5]} 34. Bh5+ {[%clk 0:00:18.8]} 34... Ke7 {[%clk 0:00:49.6]} 35.
g3 {[%clk 0:00:18.7]} 35... Nf5 {[%clk 0:00:48.7]} 36. Bf3 {[%clk 0:00:15.3]}
36... Nh4 {[%clk 0:00:45.2]} 37. Be4 {[%clk 0:00:14.1]} 37... Nf5 {[%clk
0:00:45]} 38. Ra7 {[%clk 0:00:12.1]} 38... Rgc8 {[%clk 0:00:24.5]} 39. Bxf5
{[%clk 0:00:10.8]} 39... exf5 {[%clk 0:00:24.5]} 40. e6 {[%clk 0:00:11.6]} 40...
Kxe6 {[%clk 0:00:22.8]} 41. Re1+ {[%clk 0:00:11.5]} 41... Kd5 {[%clk 0:00:20.9]}
42. Rxd7+ {[%clk 0:00:10.8]} 42... Kc4 {[%clk 0:00:21.3]} 43. Bxb8 {[%clk
0:00:10.9]} 43... Rxb8 {[%clk 0:00:22.1]} 44. Rxh7 {[%clk 0:00:10.9]} 44... Rb7
{[%clk 0:00:21.2]} 45. Rxb7 {[%clk 0:00:10.5]} 45... Kb3 {[%clk 0:00:21.7]} 46.
Rxb6 {[%clk 0:00:10.5]} 46... Ka2 {[%clk 0:00:21.8]} 47. Rf6 {[%clk 0:00:11.4]}
47... f4 {[%clk 0:00:21.1]} 48. Rxf4 {[%clk 0:00:11.6]} 48... Ka3 {[%clk
0:00:22]} 49. d5 {[%clk 0:00:11.5]} 49... Ka2 {[%clk 0:00:22.9]} 50. d6 {[%clk
0:00:11.8]} 50... Ka3 {[%clk 0:00:23.8]} 51. Re3+ {[%clk 0:00:10.8]} 51... Ka2
{[%clk 0:00:24.7]} 52. Rd4 {[%clk 0:00:10.6]} 52... Ka1 {[%clk 0:00:24.5]} 53.
Rd2 {[%clk 0:00:09.9]} 53... Kb1 {[%clk 0:00:21.1]} 54. Re1# {[%clk 0:00:10.6]}
1-0